bitfinex-derivatives/quotes_BNBF0:USTF0_20250315
["timestamp","ask_amount","ask_price","bid_price","bid_amount"]
[1742036622521,0.2855527,597.55,596.52,2.29927794]
[1742036624617,0.28555349,597.54,596.52,2.29927794]
[1742036624816,0.28555349,597.53,596.52,1.34327794]
[1742036625024,0.28555349,597.55,596.52,1.34327794]
[1742036625224,0.28555349,597.54,596.52,1.34327794]
[1742036625519,0.28555349,597.55,596.52,1.34327794]
[1742036625724,0.28555349,597.54,596.52,1.34327794]
[1742036625920,0.28555349,597.55,596.52,1.34327794]
[1742036626117,0.28555349,597.54,596.52,1.34327794]
[1742036626520,0.28555285,597.53,596.52,1.34327794]
[1742036626724,0.28555285,597.52,596.52,1.34327794]
[1742036626925,0.28555285,597.55,596.52,1.34327794]
[1742036627125,0.28555285,597.54,596.52,1.34327794]
[1742036627325,0.28555285,597.55,596.52,1.34327794]
[1742036627521,0.28555285,597.54,596.52,0.33527794]
[1742036627720,0.28555285,597.53,596.52,0.33527794]
[1742036627920,0.28555285,597.55,596.52,0.33527794]
[1742036628124,0.28555285,597.54,596.52,0.33527794]
[1742036628320,0.28555285,597.55,596.52,0.33527794]
[1742036628522,0.28555285,597.54,596.52,0.33527794]
[1742036628725,0.28555285,597.53,596.52,0.33527794]
[1742036628922,0.28555285,597.55,596.52,0.33527794]
[1742036629128,0.28555285,597.54,596.52,0.33527794]
[1742036629328,0.28555285,597.55,596.52,0.33527794]
[1742036629528,0.28555285,597.54,596.52,0.33527794]
[1742036629724,0.28555285,597.53,596.52,0.33527794]
[1742036629923,0.28555285,597.55,596.52,0.33527794]
[1742036630126,0.33469442,597.56,596.52,0.33527794]
[1742036630127,0.28555285,597.54,596.52,0.33527794]
[1742036630424,0.28555285,597.53,596.52,0.33527794]
[1742036630624,0.28555285,597.55,596.52,0.33527794]
[1742036630829,0.28555285,597.54,596.52,0.33527794]
[1742036631031,0.28555285,597.53,596.52,0.33527794]
[1742036631331,0.28555285,597.52,596.52,0.33527794]
[1742036631530,0.28555285,597.55,596.52,0.33527794]
[1742036631730,0.28555285,597.54,596.52,0.33527794]
[1742036631931,0.28555285,597.55,596.52,0.33527794]
[1742036633630,0.62025287,597.55,596.52,0.33527794]
[1742036633932,0.28555285,597.54,596.52,0.33527794]
[1742036636929,0.28555285,597.54,596.08,0.29161115]
[1742036637233,0.28555285,597.53,596.08,0.29161115]
[1742036637433,0.28555285,597.65,596.08,0.29161115]
[1742036637634,0.28555285,597.64,596.08,0.29161115]
[1742036637834,0.28555285,597.65,596.08,0.29161115]
[1742036638134,0.28555285,597.64,596.08,0.29161115]
[1742036638329,0.28555285,597.65,596.08,1.59161115]
[1742036638534,0.28555285,597.65,596.08,1.3]
[1742036638737,0.28555285,597.84,596.08,1.3]
[1742036638937,0.29161604,597.66,596.08,1.59161604]
[1742036639135,0.28555285,597.65,596.08,1.59161604]
[1742036639436,0.28555285,597.64,596.08,1.59161604]
[1742036639630,0.28555285,597.8,596.08,1.59161604]
[1742036639830,0.28555285,597.79,596.08,1.59161604]
[1742036640035,0.28555285,597.78,596.08,1.59161604]
[1742036640237,0.28555285,597.77,596.09,1.1]
[1742036640430,0.28555285,597.76,596.09,1.1]
[1742036640629,0.28555285,597.75,596.09,1.1]
[1742036640830,0.28555285,597.8,596.09,1.1]
[1742036641030,0.28555285,597.79,596.09,1.1]
[1742036641236,3.02202944,598.01,596.09,1.1]
[1742036641237,2.55951673,597.75,596.09,1.1]
[1742036641432,0.28555641,597.74,596.09,1.1]
[1742036641836,0.57718833,597.73,596.09,1.1]
[1742036642044,0.29163192,597.73,596.09,1.1]
[1742036642232,0.29163192,597.73,596.1,1.188]
[1742036643935,0.2855546,597.72,596.11,0.30798181]
[1742036644239,0.2855546,597.71,596.11,0.30798181]
[1742036644442,0.2855546,597.7,596.11,0.30798181]
[1742036644634,0.29163192,597.73,596.11,0.30798181]
[1742036644635,0.2855546,597.69,596.11,0.30798181]
[1742036644832,0.2855546,597.68,596.11,0.30798181]
[1742036645034,0.2855546,597.67,596.11,0.30798181]
[1742036645238,0.2855546,597.66,596.11,0.30798181]
[1742036645435,0.2855546,597.65,596.11,0.30798181]
[1742036645635,0.2855546,597.64,596.11,0.30798181]
[1742036645941,0.29163192,597.73,596.11,0.30798181]
[1742036645942,2.55951673,597.6,596.11,0.30798181]
[1742036646144,0.2855546,597.59,596.11,0.30798181]
[1742036646341,0.2855546,597.58,596.11,0.30798181]
[1742036646541,0.2855546,597.57,596.11,0.30798181]
[1742036646941,0.2855546,597.56,596.11,0.30798181]
[1742036647142,0.2855546,597.55,596.11,0.30798181]
[1742036647343,2.84507133,597.54,596.11,0.30798181]
[1742036647545,0.2855546,597.53,596.11,0.30798181]
[1742036647845,0.2855546,597.52,596.11,0.30798181]
[1742036648041,2.55951673,597.54,596.11,0.30798181]
[1742036648042,0.2855546,597.51,596.11,0.30798181]
[1742036648244,0.2855546,597.53,596.11,0.30798181]
[1742036648441,0.2855546,597.5,596.11,0.30798181]
[1742036648645,0.2855546,597.49,596.11,0.30798181]
[1742036648847,2.84507133,597.53,596.11,0.30798181]
[1742036649041,0.2855546,597.52,596.11,0.30798181]
[1742036650354,2.55951673,597.53,596.1,1.188]
[1742036650548,0.28555927,597.51,596.11,1.26998507]
[1742036650752,0.28555927,597.5,596.12,0.30798507]
[1742036650954,0.28555927,597.49,596.12,0.30798507]
[1742036651254,0.28555927,597.48,596.12,0.30798507]
[1742036651453,0.28555927,597.47,596.12,0.30798507]
[1742036651655,0.28555927,597.57,596.11,0.962]
[1742036651851,0.28555927,597.56,596.11,0.962]
[1742036652054,6.64017792,597.79,596.11,0.962]
[1742036652055,0.28555927,597.55,596.11,0.962]
[1742036652252,0.28555927,597.54,596.11,0.962]
[1742036652554,0.28555927,597.53,596.11,0.962]
[1742036652748,0.28555927,597.52,596.11,0.962]
[1742036652951,0.28555927,597.51,596.11,0.962]
[1742036653152,0.28555927,597.5,596.11,0.962]
[1742036653354,0.28555927,597.56,596.11,0.962]
[1742036653554,0.28555927,597.55,596.11,0.962]
[1742036653758,0.28555927,597.54,596.11,0.962]
[1742036654055,0.28555927,597.53,596.11,0.962]
[1742036654251,0.28555927,597.52,596.11,0.962]
[1742036654457,0.28555927,597.51,596.11,0.962]
[1742036654651,2.55951673,597.53,596.11,0.962]
[1742036654652,0.28555927,597.5,596.11,0.962]
[1742036654855,0.28555927,597.49,596.12,0.737]
[1742036655055,0.28555927,597.48,596.12,1.716]
[1742036655258,0.28555927,597.47,596.12,1.716]
[1742036655453,0.28555927,597.46,596.12,1.716]
[1742036655753,0.28555927,597.45,596.12,1.716]
[1742036655962,0.28555927,597.52,596.12,1.716]
[1742036656158,0.28555927,597.51,596.12,1.716]
[1742036656459,0.28555927,597.5,596.12,1.716]
[1742036656757,2.55951673,597.55,596.12,1.716]
[1742036656758,0.28555927,597.49,596.12,1.716]
[1742036656960,0.28555927,597.54,596.12,1.716]
[1742036657156,0.28555927,597.53,596.12,1.716]
[1742036657352,0.28555927,597.52,596.13,1.169]
[1742036657558,0.28555927,597.51,596.13,1.169]
[1742036657758,2.55951673,597.55,596.13,1.169]
[1742036657960,0.28554691,597.54,596.13,1.169]
[1742036658359,0.28554691,597.61,596.13,1.169]
[1742036658759,6.92982722,598.09,596.13,1.169]
[1742036659062,6.92982722,598.08,596.14,2.126]
[1742036659360,6.92982722,598.07,596.14,2.126]
[1742036659655,6.92982722,598.06,596.14,2.126]
[1742036659860,6.92982722,598.05,596.14,2.126]
[1742036660159,6.92982722,598.04,596.14,2.126]
[1742036660355,6.92982722,598.03,596.14,2.126]
[1742036660555,6.92982722,598.02,596.14,2.126]
[1742036660759,4.753078,598.01,596.14,2.126]
[1742036661066,4.75505665,598.0,596.14,2.126]
[1742036661255,0.28554691,597.99,596.14,2.126]
[1742036661560,0.28554691,597.98,596.14,2.126]
[1742036661958,0.28554691,597.97,596.14,2.126]
[1742036662154,0.28554691,598.03,596.14,2.126]
[1742036662353,0.28554691,598.02,596.14,2.126]
[1742036662659,0.28554691,598.01,596.14,2.126]
[1742036662860,0.28554691,598.0,596.14,2.126]
[1742036663053,0.28554691,598.05,596.14,2.126]
[1742036663253,0.28554691,598.04,596.14,2.126]
[1742036663457,0.2915916,598.06,596.14,2.126]
[1742036663655,0.28549438,598.05,596.14,2.126]
[1742036667259,0.2915916,598.06,596.14,2.126]
[1742036667460,0.28549772,598.05,596.14,2.126]
[1742036668762,0.29154397,598.04,596.14,2.126]
[1742036668957,0.28549772,598.03,596.14,2.126]
[1742036669158,0.29154397,598.04,596.14,2.126]
[1742036669364,0.28549722,598.03,596.15,0.809]
[1742036670856,0.29154397,598.04,596.15,0.809]
[1742036671063,0.28549609,598.03,596.15,1.771]
[1742036671558,0.28549609,598.02,596.15,1.771]
[1742036671863,0.28549609,598.01,596.15,1.771]
[1742036672066,0.28549609,598.0,596.15,1.771]
[1742036672365,0.28549609,597.99,596.15,1.771]
[1742036672758,0.28549721,597.98,596.15,1.771]
[1742036672960,0.28549721,597.97,596.15,1.771]
[1742036673161,0.28549721,597.96,596.15,1.771]
[1742036673462,0.28549721,597.95,596.15,3.065]
[1742036673666,0.28549721,597.94,596.15,3.065]
[1742036673967,0.28549721,597.93,596.15,3.065]
[1742036674171,0.28549721,598.0,596.15,3.065]
[1742036674369,0.28549721,597.99,596.15,3.065]
[1742036674560,0.28549721,597.98,596.15,3.065]
[1742036674763,0.33447053,597.96,596.17,0.33547478]
[1742036674962,0.28549721,597.95,596.17,0.33547478]
[1742036675267,0.33448731,597.93,596.17,0.33547478]
[1742036675468,0.28549721,597.92,596.17,0.33547478]
[1742036675667,0.33450409,597.9,596.17,0.33547478]
[1742036675963,0.28549721,597.89,596.17,1.51147478]
[1742036676167,0.33451528,597.88,596.17,1.51147478]
[1742036676463,0.28549721,597.87,596.17,1.51147478]
[1742036676668,0.33452647,597.86,596.17,1.51147478]
[1742036676967,0.28549721,597.85,596.17,1.51147478]
[1742036677168,0.33453766,597.84,596.18,0.30786838]
[1742036677364,0.28549721,597.83,596.2,0.3354579]
[1742036677667,0.33454886,597.82,596.21,0.30786838]
[1742036677869,0.28549721,597.81,596.23,0.33544102]
[1742036678168,0.28549721,597.81,596.24,0.30786838]
[1742036678369,0.28549721,597.81,596.26,0.33542414]
[1742036678567,0.28549721,597.81,596.27,0.30786838]
[1742036678970,0.28549721,597.81,596.29,0.33540726]
[1742036679165,0.28549721,597.81,596.3,0.30786838]
[1742036679465,0.28549721,597.81,596.32,0.33539039]
[1742036681070,0.28549721,597.81,596.33,0.30786041]
[1742036681270,0.28549721,597.81,596.34,0.33537914]
[1742036681571,0.28549721,597.8,596.35,0.30786041]
[1742036681769,0.28549721,597.79,596.36,0.33536789]
[1742036681967,0.28549721,597.78,596.37,0.30786041]
[1742036682270,0.28543595,597.77,596.38,0.64321706]
[1742036682572,0.28543595,597.76,596.39,0.64321143]
[1742036682764,0.28543595,597.75,596.4,0.64320581]
[1742036682964,0.28543595,597.74,596.41,0.64320019]
[1742036683165,0.28543595,597.73,596.42,0.30786041]
[1742036683364,0.28543595,597.72,596.43,0.33532853]
[1742036683567,0.28543595,597.71,596.43,0.33532853]
[1742036683766,0.28543595,597.81,596.43,0.33532853]
[1742036683965,0.33454886,597.82,596.43,0.33532853]
[1742036684168,0.28543079,597.81,596.43,0.33532853]
[1742036684363,0.28543079,597.8,596.43,0.33532853]
[1742036684563,0.28543079,597.79,596.43,0.33532853]
[1742036684767,0.28543079,597.78,596.43,0.33532853]
[1742036684967,0.28543079,597.77,596.43,0.33532853]
[1742036685269,0.33454886,597.82,596.43,0.33532853]
[1742036685270,0.28543079,597.76,596.43,0.33532853]
[1742036685464,0.33454886,597.82,596.43,0.33532853]
[1742036685465,0.28543079,597.75,596.43,0.33532853]
[1742036685667,0.33454886,597.82,596.43,0.33532853]
[1742036685668,0.28543079,597.81,596.43,0.33532853]
[1742036685969,0.28542633,597.8,596.43,0.33532853]
[1742036686170,0.28542633,597.79,596.43,0.33532853]
[1742036686365,0.28542633,597.78,596.43,0.33532853]
[1742036686873,0.28542633,597.77,596.43,0.33532853]
[1742036687067,0.28542633,597.76,596.43,0.33532853]
[1742036687268,0.28542633,597.75,596.43,0.33532853]
[1742036687569,0.33454886,597.82,596.43,0.33532853]
[1742036687771,0.28542553,597.81,596.43,0.33532853]
[1742036687970,0.28542553,597.8,596.43,1.29732853]
[1742036688172,0.28542553,597.79,596.43,1.29732853]
[1742036688567,0.28542553,597.78,596.43,1.29732853]
[1742036688772,0.28542553,597.77,596.44,0.3078503]
[1742036688972,0.28542553,597.76,596.45,0.33531729]
[1742036689168,0.33454886,597.82,596.45,0.33531729]
[1742036689169,0.28542553,597.81,596.45,0.33531729]
[1742036689375,0.28542553,597.8,596.45,0.33531729]
[1742036689581,0.33454886,597.82,596.45,0.33531729]
[1742036689773,0.28539499,597.81,596.45,0.33531729]
[1742036690671,0.28539499,597.81,596.46,1.173]
[1742036690874,0.28539499,597.81,596.47,0.33530605]
[1742036691575,0.28539119,597.8,596.47,0.33530605]
[1742036691776,0.28539119,597.79,596.47,0.33530605]
[1742036691976,0.28539119,597.78,596.47,0.33530605]
[1742036692275,0.28539119,597.77,596.47,0.33530605]
[1742036692477,0.28539119,597.81,596.47,0.33530605]
[1742036698877,0.28539119,597.8,596.48,1.85182394]
[1742036699078,0.28539119,597.79,596.49,0.64311874]
[1742036699278,0.28539119,597.78,596.5,0.64311312]
[1742036699478,0.28539119,597.77,596.51,0.6431075]
[1742036699673,0.28539119,597.76,596.52,0.64310188]
[1742036699978,0.28539119,597.75,596.53,0.64309626]
[1742036700172,0.28539119,597.74,596.54,0.3352667]
[1742036700376,0.28539119,597.73,596.54,0.3352667]
[1742036700777,0.28539119,597.72,596.54,1.5932667]
[1742036700978,0.28539119,597.71,596.54,1.5932667]
[1742036701172,0.28539119,597.7,596.54,1.5932667]
[1742036701377,0.28539119,597.69,596.54,3.7452667]
[1742036701574,0.33454886,597.82,596.54,3.7452667]
[1742036701575,0.28539119,597.81,596.54,3.7452667]
[1742036701778,0.28539119,597.8,596.54,3.7452667]
[1742036701981,0.33454886,597.82,596.54,3.7452667]
[1742036702179,0.33454886,597.82,596.55,0.30769468]
[1742036702180,0.28531671,597.81,596.55,0.30769468]
[1742036702373,0.28531671,597.81,596.57,0.33524984]
[1742036702577,0.28531671,597.81,596.58,0.30769468]
[1742036702875,0.28531671,597.81,596.6,0.33523298]
[1742036703078,0.28531671,597.83,596.61,0.30769468]
[1742036703276,0.28531671,597.82,596.63,0.33521613]
[1742036703581,0.28531671,597.81,596.64,0.30769468]
[1742036703780,0.28531671,597.83,596.66,0.33519927]
[1742036703980,2.55951673,597.84,596.66,0.33519927]
[1742036704176,0.28524993,597.83,596.66,0.33519927]
[1742036704783,0.28524993,597.82,596.66,0.33519927]
[1742036704979,0.28524993,598.58,596.66,0.33519927]
[1742036705180,0.28524993,597.81,596.66,0.33519927]
[1742036705381,0.28524993,597.8,596.66,0.33519927]
[1742036705581,0.28524993,598.55,596.66,0.33519927]
[1742036705775,0.334152,598.53,596.66,0.33519927]
[1742036705977,0.334152,598.53,596.66,1.19219927]
[1742036706180,0.28525887,598.52,596.66,1.19219927]
[1742036706384,0.33416875,598.5,596.66,1.19219927]
[1742036706585,0.28525887,598.49,596.66,1.19219927]
[1742036706784,0.3341855,598.47,596.66,1.19219927]
[1742036706988,0.28525887,598.46,596.66,1.19219927]
[1742036707286,0.33420225,598.44,596.66,3.42919927]
[1742036707485,0.28525887,598.43,596.66,3.42919927]
[1742036707682,0.33421901,598.41,596.66,3.42919927]
[1742036707980,0.28525887,598.4,596.66,3.42919927]
[1742036708186,0.33423576,598.38,596.66,3.42919927]
[1742036708580,0.28525887,598.37,596.66,3.42919927]
[1742036708784,0.33425252,598.35,596.66,3.42919927]
[1742036709084,0.28525887,598.34,596.66,3.42919927]
[1742036709279,0.33426928,598.32,596.66,3.42919927]
[1742036709680,0.28532218,598.31,596.66,3.42919927]
[1742036709885,0.33428604,598.29,596.66,3.42919927]
[1742036710080,0.28532218,598.28,596.66,3.42919927]
[1742036710279,0.33430281,598.26,596.66,3.42919927]
[1742036710483,0.28532218,598.25,596.66,3.42919927]
[1742036710681,0.33431957,598.23,596.66,3.42919927]
[1742036710879,0.28532218,598.22,596.66,3.42919927]
[1742036711081,0.33433634,598.2,596.66,3.42919927]
[1742036711286,0.28532218,598.19,596.66,3.42919927]
[1742036711586,0.61966665,598.18,596.66,3.42919927]
[1742036711781,0.61967224,598.17,596.66,3.42919927]
[1742036711987,0.61967783,598.16,596.66,3.42919927]
[1742036712189,0.61968341,598.15,596.66,3.42919927]
[1742036712388,0.619689,598.14,596.66,3.42919927]
[1742036712588,0.6196946,598.13,596.66,3.42919927]
[1742036712788,0.61970019,598.12,596.66,3.42919927]
[1742036713088,0.61970578,598.11,596.66,3.42919927]
[1742036713291,0.61971137,598.1,596.66,3.42919927]
[1742036713585,0.61971696,598.09,596.66,3.42919927]
[1742036713889,0.28531913,598.08,596.66,3.42919927]
[1742036714387,0.61972814,598.07,596.66,3.42919927]
[1742036714588,0.28531913,598.06,596.66,3.42919927]
[1742036714788,0.28531913,598.06,596.66,4.39119927]
[1742036715188,0.33440901,598.07,596.66,5.43919927]
[1742036715387,0.28525351,598.06,596.66,5.43919927]
[1742036716189,0.28524845,598.05,596.66,5.43919927]
[1742036716490,0.28524845,598.04,596.66,5.43919927]
[1742036716784,0.28524845,598.03,596.66,5.43919927]
[1742036716990,0.28530023,598.02,596.66,5.43919927]
[1742036717189,0.28530023,598.06,596.66,5.43919927]
[1742036718388,0.28530023,598.06,596.66,6.86019927]
[1742036719686,0.61972042,598.05,596.66,6.86019927]
[1742036719888,0.61972602,598.04,596.66,6.86019927]
[1742036720084,0.28530023,598.03,596.66,6.86019927]
[1742036720285,0.28530023,598.02,596.66,6.86019927]
[1742036720486,0.28530023,598.01,596.66,6.86019927]
[1742036720690,0.28530023,598.0,596.66,6.86019927]
[1742036720887,0.28530023,597.99,596.66,6.86019927]
[1742036721090,0.28530023,597.98,596.66,6.86019927]
[1742036721294,0.28530023,597.97,596.66,6.86019927]
[1742036721595,0.28530023,597.96,596.66,6.86019927]
[1742036721789,0.28530023,597.95,596.66,6.86019927]
[1742036721989,0.28530023,597.94,596.66,6.86019927]
[1742036722191,0.28530023,597.93,596.66,6.86019927]
[1742036722389,0.28530023,597.92,596.66,6.86019927]
[1742036722587,0.28530023,597.91,596.66,6.86019927]
[1742036722792,0.28533953,597.9,596.66,6.86019927]
[1742036722992,0.28533953,597.89,596.66,6.86019927]
[1742036723293,0.28533953,597.88,596.66,6.86019927]
[1742036723593,0.28533953,597.87,596.66,6.86019927]
[1742036723789,0.28533953,598.03,596.66,6.86019927]
[1742036723994,0.28533953,598.02,596.66,6.86019927]
[1742036725396,0.6197765,598.02,596.66,7.80219927]
[1742036725594,0.28533953,598.01,596.66,7.80219927]
[1742036726490,0.28533142,598.0,596.66,7.80219927]
[1742036726795,0.28533142,597.99,596.66,7.80219927]
[1742036726996,0.28533142,598.01,596.66,8.92219927]
[1742036727198,0.28533142,598.0,596.66,8.92219927]
[1742036727392,0.28533142,598.01,596.66,8.92219927]
[1742036727590,0.28533142,598.0,596.66,8.92219927]
[1742036727897,0.28533142,597.99,596.66,8.92219927]
[1742036728095,0.28533142,598.01,596.66,8.92219927]
[1742036728289,0.28533142,597.98,596.66,8.92219927]
[1742036728492,0.28533142,597.97,596.66,8.92219927]
[1742036728690,0.28533142,597.96,596.66,8.92219927]
[1742036728994,0.28533142,597.95,596.66,8.92219927]
[1742036729194,0.28533142,598.01,596.66,8.92219927]
[1742036729395,0.28533142,598.0,596.66,8.92219927]
[1742036729594,0.28533142,597.99,596.66,8.92219927]
[1742036729895,0.28533142,597.98,596.66,8.92219927]
[1742036730097,0.28533142,597.97,596.66,8.92219927]
[1742036730298,0.28533142,597.96,596.66,8.92219927]
[1742036730499,0.28533142,598.01,596.66,8.92219927]
[1742036730698,0.28533142,598.0,596.66,8.92219927]
[1742036730897,0.28533142,598.01,596.66,8.92219927]
[1742036731098,0.28533142,598.0,596.66,8.92219927]
[1742036731399,0.28533142,597.99,596.66,8.92219927]
[1742036731696,0.33443697,598.02,596.66,8.92219927]
[1742036731896,0.28535355,598.01,596.66,8.92219927]
[1742036732599,0.28535313,598.0,596.66,8.92219927]
[1742036732795,0.28535313,597.99,596.66,8.92219927]
[1742036732999,0.28535313,597.98,596.66,8.92219927]
[1742036733195,0.28535313,598.01,596.66,8.92219927]
[1742036733400,0.28535313,598.0,596.66,8.92219927]
[1742036733598,0.28535313,597.99,596.66,8.92219927]
[1742036733801,0.28535313,598.01,596.66,8.92219927]
[1742036735801,0.28535313,598.0,596.66,8.92219927]
[1742036735999,0.28535313,597.99,596.66,8.92219927]
[1742036736196,0.28535313,598.01,596.66,8.92219927]
[1742036736395,0.28535313,598.0,596.66,8.92219927]
[1742036736596,0.28535313,597.99,596.66,8.92219927]
[1742036736797,0.28535313,597.98,596.66,8.92219927]
[1742036737002,0.28535313,597.97,596.66,8.92219927]
[1742036737197,0.33443697,598.02,596.66,8.92219927]
[1742036737198,0.28535313,598.01,596.66,8.92219927]
[1742036737397,0.28535313,598.0,596.66,8.92219927]
[1742036737602,0.28535313,598.01,596.66,8.92219927]
[1742036737808,0.28535313,598.0,596.66,8.92219927]
[1742036738104,0.28535313,597.99,596.66,8.92219927]
[1742036738300,0.28535313,598.01,596.66,8.92219927]
[1742036741201,0.33443697,598.02,596.66,8.92219927]
[1742036741407,0.28532352,598.01,596.66,8.92219927]
[1742036745010,0.28534579,598.0,596.66,8.92219927]
[1742036745314,0.33443697,598.02,596.66,8.92219927]
[1742036745315,0.28534579,597.99,596.66,8.92219927]
[1742036745514,0.28534579,598.01,596.66,8.92219927]
[1742036745715,0.28534579,598.0,596.66,8.92219927]
[1742036745915,0.28534579,598.01,596.66,8.92219927]
[1742036746118,0.28534579,598.0,596.66,8.92219927]
[1742036746314,0.28534579,598.01,596.66,8.92219927]
[1742036746616,0.33443697,598.02,596.66,8.92219927]
[1742036746915,0.28534586,598.01,596.66,8.92219927]
[1742036749715,0.28534586,598.0,596.66,8.92219927]
[1742036749914,0.28534586,597.99,596.66,8.92219927]
[1742036750117,0.28534586,597.98,596.66,8.92219927]
[1742036750313,0.28534586,597.97,596.66,8.92219927]
[1742036750511,0.28534586,597.96,596.66,8.92219927]
[1742036750712,0.28534586,597.95,596.66,8.92219927]
[1742036750918,0.28534586,597.94,596.66,8.92219927]
[1742036751218,0.28534586,597.93,596.66,8.92219927]
[1742036751518,0.28534586,597.92,596.66,8.92219927]
[1742036751718,0.28534586,597.91,596.66,8.92219927]
[1742036751919,0.28534586,598.01,596.66,8.92219927]
[1742036752119,0.28534586,598.0,596.66,8.92219927]
[1742036752322,0.28534586,597.99,596.66,8.92219927]
[1742036752619,0.28534586,597.98,596.66,8.92219927]
[1742036752920,0.28534586,597.97,596.66,8.92219927]
[1742036753215,0.28534586,597.96,596.66,8.92219927]
[1742036753516,0.28534586,597.95,596.66,8.92219927]
[1742036753722,0.28534586,597.94,596.66,8.92219927]
[1742036754020,0.28534586,597.93,596.66,8.92219927]
[1742036754214,0.28534586,597.99,596.66,8.92219927]
[1742036754413,0.28534586,597.98,596.66,8.92219927]
[1742036754614,0.2852997,597.97,596.66,8.92219927]
[1742036754818,0.28529855,597.96,596.66,8.92219927]
[1742036755020,0.28529855,597.99,596.66,8.92219927]
[1742036755317,0.28529855,597.98,596.66,8.92219927]
[1742036755519,2.55951673,597.95,596.66,8.92219927]
[1742036755821,0.28529855,597.94,596.66,8.92219927]
[1742036756022,2.55951673,597.95,596.66,8.92219927]
[1742036756219,0.28528635,597.94,596.66,8.92219927]
[1742036758022,0.28528635,598.01,596.66,8.92219927]
[1742036758321,0.28528635,598.0,596.66,8.92219927]
[1742036758522,0.28528635,598.01,596.66,8.92219927]
[1742036758717,0.28528635,598.0,596.66,8.92219927]
[1742036759025,0.28528635,597.99,596.66,8.92219927]
[1742036759214,0.28528635,598.01,596.66,8.92219927]
[1742036759420,0.28528635,598.0,596.66,8.92219927]
[1742036759621,0.28528635,598.01,596.66,8.92219927]
[1742036764326,0.28534124,598.0,596.66,8.92219927]
[1742036764522,0.28534124,598.01,596.66,8.92219927]
[1742036770928,0.28530392,598.0,596.66,8.92219927]
[1742036771230,0.28530392,597.99,596.66,8.92219927]
[1742036771530,0.33443697,598.02,596.66,8.92219927]
[1742036771531,0.28530392,597.98,596.66,8.92219927]
[1742036771831,0.28530392,597.97,596.66,8.92219927]
[1742036772033,0.28530392,598.01,596.66,8.92219927]
[1742036774534,0.33443697,598.02,596.66,8.92219927]
[1742036774735,0.28531,598.01,596.66,8.92219927]
[1742036778335,0.33443697,598.02,596.66,8.92219927]
[1742036778529,0.28530586,598.01,596.66,8.92219927]
[1742036780336,0.28530321,598.0,596.66,8.92219927]
[1742036780530,0.28530321,598.01,596.66,8.92219927]
[1742036784033,0.28530321,598.01,596.67,0.30766235]
[1742036784237,0.28530321,598.01,596.69,0.33518242]
[1742036784637,0.28530321,598.01,596.7,0.30766235]
[1742036784834,0.28530321,598.01,596.72,0.33516557]
[1742036785038,0.28530321,598.01,596.73,0.30766235]
[1742036785239,0.28530321,598.01,596.74,0.33515433]
[1742036785533,0.28530321,598.01,596.75,0.30766235]
[1742036785736,0.28530321,598.01,596.76,0.3351431]
[1742036785942,0.28530321,598.01,596.77,0.30766235]
[1742036786242,0.28530321,598.01,596.78,0.33513187]
[1742036786641,0.28530321,598.01,596.78,3.04113187]
[1742036786841,0.28530321,598.01,596.78,3.87213187]
[1742036787042,0.28530321,598.01,596.78,4.82713187]
[1742036787241,0.28530321,598.01,596.78,5.72013187]
[1742036787441,0.28530321,598.01,596.78,6.68213187]
[1742036787842,0.28522427,598.0,596.78,7.55413187]
[1742036788038,0.33443697,598.02,596.78,7.55413187]
[1742036788039,0.28522427,598.01,596.78,7.55413187]
[1742036789641,0.28522548,598.0,596.78,7.55413187]
[1742036789842,0.28522548,598.01,596.78,7.55413187]
[1742036790143,0.28522548,598.0,596.78,7.55413187]
[1742036790339,0.28522548,598.01,596.78,7.55413187]
[1742036791347,0.33443697,598.02,596.78,7.55413187]
[1742036791545,0.28523345,598.01,596.78,7.55413187]
[1742036791944,0.33443697,598.02,596.78,7.55413187]
[1742036792143,0.28522684,598.01,596.78,7.55413187]
[1742036793449,0.28522672,598.0,596.78,7.55413187]
[1742036793646,0.28522672,598.01,596.78,7.55413187]
[1742036793844,0.28522672,597.99,596.78,7.55413187]
[1742036794246,0.28522672,598.01,596.78,7.55413187]
[1742036794445,0.28522672,598.0,596.78,7.55413187]
[1742036794648,0.28522672,598.01,596.78,7.55413187]
[1742036794848,0.28522672,598.0,596.78,7.55413187]
[1742036795151,0.28522672,597.99,596.78,7.55413187]
[1742036795352,0.28522643,597.98,596.78,7.55413187]
[1742036795650,0.28522643,597.97,596.78,7.55413187]
[1742036795851,0.28522643,598.01,596.78,7.55413187]
[1742036796052,0.28522643,598.0,596.78,7.55413187]
[1742036796350,0.28522643,597.99,596.78,7.55413187]
[1742036796546,0.28522643,598.01,596.78,7.55413187]
[1742036796750,0.28522643,598.0,596.78,7.55413187]
[1742036797151,0.28522643,597.99,596.78,7.55413187]
[1742036797353,0.28522643,598.01,596.78,7.55413187]
[1742036797653,0.28522643,598.0,596.78,7.55413187]
[1742036797953,0.28522643,597.99,596.78,7.55413187]